[Event "Betsys MČR v online bleskovém šachu 2021"]
[Site "Chess.com"]
[Date "2021.04.17"]
[Round "1"]
[White "FutureFideMasseur"]
[Black "rakintsev"]
[Result "1-0"]
[WhiteElo "2446"]
[BlackElo "1773"]
[TimeControl "180+1"]
[EndTime "9:07:16 PDT"]
[Termination "Uživatel FutureFideMasseur zvítězil matem"]

1. d4 {[%clk 0:03:00.9]} 1... d5 {[%clk 0:02:57.5]} 2. c4 {[%clk 0:03:01]} 2...
c6 {[%clk 0:02:57.2]} 3. Nc3 {[%clk 0:03:00.7]} 3... Nf6 {[%clk 0:02:55.5]} 4.
cxd5 {[%clk 0:03:00.3]} 4... Nxd5 {[%clk 0:02:54.2]} 5. e4 {[%clk 0:02:59]} 5...
Nxc3 {[%clk 0:02:53.4]} 6. bxc3 {[%clk 0:02:59.9]} 6... Nd7 {[%clk 0:02:50.1]}
7. Nf3 {[%clk 0:02:57.5]} 7... Nb6 {[%clk 0:02:47.1]} 8. Bd3 {[%clk 0:02:52.5]}
8... Bg4 {[%clk 0:02:46.4]} 9. O-O {[%clk 0:02:49.1]} 9... e6 {[%clk 0:02:45.9]}
10. h3 {[%clk 0:02:48.1]} 10... Bh5 {[%clk 0:02:45.3]} 11. a4 {[%clk 0:02:39]}
11... Be7 {[%clk 0:02:41.7]} 12. a5 {[%clk 0:02:38]} 12... Nd7 {[%clk
0:02:40.3]} 13. e5 {[%clk 0:02:17.7]} 13... c5 {[%clk 0:02:01.9]} 14. Be4 {[%clk
0:02:10.5]} 14... Rb8 {[%clk 0:01:57.3]} 15. Be3 {[%clk 0:01:49.9]} 15... cxd4
{[%clk 0:01:35.1]} 16. cxd4 {[%clk 0:01:48]} 16... b6 {[%clk 0:01:31.5]} 17.
axb6 {[%clk 0:01:37]} 17... axb6 {[%clk 0:01:30]} 18. Qb3 {[%clk 0:01:33.9]}
18... O-O {[%clk 0:01:20.4]} 19. Ra7 {[%clk 0:01:32.5]} 19... f5 {[%clk
0:00:55.8]} 20. Qxe6+ {[%clk 0:01:09.9]} 20... Bf7 {[%clk 0:00:44.2]} 21. Qxf5
{[%clk 0:01:05.3]} 21... Bg6 {[%clk 0:00:34.5]} 22. Bd5+ {[%clk 0:01:04.4]}
22... Kh8 {[%clk 0:00:30.2]} 23. Qxd7 {[%clk 0:01:04.3]} 23... Qxd7 {[%clk
0:00:21.7]} 24. Rxd7 {[%clk 0:01:05.2]} 24... Bb4 {[%clk 0:00:20.4]} 25. Rc1
{[%clk 0:00:59.3]} 25... b5 {[%clk 0:00:18]} 26. Rcc7 {[%clk 0:00:57.9]} 26...
Bc3 {[%clk 0:00:12.8]} 27. Rxc3 {[%clk 0:00:56.3]} 27... b4 {[%clk 0:00:12.1]}
28. Rcc7 {[%clk 0:00:52.6]} 28... b3 {[%clk 0:00:11.8]} 29. Bxb3 {[%clk
0:00:52.7]} 29... Rxb3 {[%clk 0:00:10]} 30. Rxg7 {[%clk 0:00:52.8]} 30... Rb1+
{[%clk 0:00:09.1]} 31. Kh2 {[%clk 0:00:53]} 31... Rfb8 {[%clk 0:00:08.5]} 32.
Bg5 {[%clk 0:00:50.5]} 32... R1b2 {[%clk 0:00:07]} 33. Bf6 {[%clk 0:00:49.8]}
33... Rxf2 {[%clk 0:00:05.9]} 34. Rxg6# {[%clk 0:00:49.4]} 1-0

[Event "Betsys MČR v online bleskovém šachu 2021"]
[Site "Chess.com"]
[Date "2021.04.17"]
[Round "1"]
[White "Fafin1"]
[Black "PavelNo"]
[Result "0-1"]
[WhiteElo "1193"]
[BlackElo "1997"]
[TimeControl "180+1"]
[EndTime "9:07:16 PDT"]
[Termination "Uživatel PavelNo zvítězil na čas"]

1. e4 {[%clk 0:02:59.6]} 1... c5 {[%clk 0:02:59]} 2. Bc4 {[%clk 0:02:57.6]} 2...
e6 {[%clk 0:02:58.7]} 3. Nf3 {[%clk 0:02:57.1]} 3... d6 {[%clk 0:02:57.5]} 4. d3
{[%clk 0:02:56.5]} 4... Nc6 {[%clk 0:02:55.6]} 5. O-O {[%clk 0:02:54.6]} 5...
Nf6 {[%clk 0:02:52.6]} 6. Bg5 {[%clk 0:02:53.3]} 6... Be7 {[%clk 0:02:52.3]} 7.
Nc3 {[%clk 0:02:49.7]} 7... a6 {[%clk 0:02:51.6]} 8. a4 {[%clk 0:02:46.2]} 8...
b6 {[%clk 0:02:51.1]} 9. Re1 {[%clk 0:02:42.1]} 9... O-O {[%clk 0:02:50]} 10. e5
{[%clk 0:02:36.9]} 10... dxe5 {[%clk 0:02:47.9]} 11. Nxe5 {[%clk 0:02:35.5]}
11... Nxe5 {[%clk 0:02:45]} 12. Rxe5 {[%clk 0:02:34.5]} 12... Bb7 {[%clk
0:02:41.5]} 13. Re1 {[%clk 0:02:23.3]} 13... Qc7 {[%clk 0:02:40.1]} 14. d4
{[%clk 0:01:58.8]} 14... Rad8 {[%clk 0:02:32.4]} 15. Ne2 {[%clk 0:01:51.7]}
15... cxd4 {[%clk 0:02:29.7]} 16. Nxd4 {[%clk 0:01:48.2]} 16... Qxc4 {[%clk
0:02:26.9]} 17. c3 {[%clk 0:01:47]} 17... Rfe8 {[%clk 0:02:22.4]} 18. Qc2 {[%clk
0:01:13.7]} 18... Rxd4 {[%clk 0:02:19]} 19. Bxf6 {[%clk 0:01:09.6]} 19... Bxf6
{[%clk 0:02:17.8]} 20. b3 {[%clk 0:01:03]} 20... Qc6 {[%clk 0:02:15.8]} 21. f3
{[%clk 0:00:57.6]} 21... Red8 {[%clk 0:02:09]} 22. Qe2 {[%clk 0:00:42.7]} 22...
Rd2 {[%clk 0:02:05.4]} 23. Qe3 {[%clk 0:00:40.5]} 23... Qxc3 {[%clk 0:01:55.3]}
24. Qxc3 {[%clk 0:00:38.9]} 24... Bxc3 {[%clk 0:01:54.2]} 25. Rac1 {[%clk
0:00:38.5]} 25... R2d3 {[%clk 0:01:47.1]} 26. Rf1 {[%clk 0:00:33.6]} 26... Bd5
{[%clk 0:01:45.3]} 27. Rb1 {[%clk 0:00:27.9]} 27... a5 {[%clk 0:01:42.7]} 28.
Rfc1 {[%clk 0:00:22.2]} 28... h6 {[%clk 0:01:41.8]} 29. Rf1 {[%clk 0:00:20.4]}
29... Bd4+ {[%clk 0:01:36.7]} 30. Kh1 {[%clk 0:00:18.7]} 30... Rxb3 {[%clk
0:01:35.3]} 31. Rxb3 {[%clk 0:00:16.5]} 31... Bxb3 {[%clk 0:01:34.4]} 32. Rc1
{[%clk 0:00:15.5]} 32... Bxa4 {[%clk 0:01:34]} 33. Rb1 {[%clk 0:00:14.5]} 33...
Bc5 {[%clk 0:01:30.7]} 34. Re1 {[%clk 0:00:11.4]} 34... Bc6 {[%clk 0:01:30]} 35.
Rb1 {[%clk 0:00:10.2]} 35... a4 {[%clk 0:01:29.4]} 36. Rc1 {[%clk 0:00:08.8]}
36... a3 {[%clk 0:01:28.8]} 37. Ra1 {[%clk 0:00:08.1]} 37... Bd5 {[%clk
0:01:27]} 38. Rc1 {[%clk 0:00:06.4]} 38... a2 {[%clk 0:01:26.4]} 39. Ra1 {[%clk
0:00:05.7]} 39... Bd4 {[%clk 0:01:25.8]} 40. Rc1 {[%clk 0:00:05.3]} 40... a1=Q
{[%clk 0:01:25.3]} 41. Rxa1 {[%clk 0:00:04.9]} 41... Bxa1 {[%clk 0:01:24.7]} 42.
Kg1 {[%clk 0:00:03.8]} 42... b5 {[%clk 0:01:24.7]} 43. Kf2 {[%clk 0:00:03.5]}
43... b4 {[%clk 0:01:25.1]} 44. Ke1 {[%clk 0:00:03.1]} 44... b3 {[%clk
0:01:25.4]} 45. Kd2 {[%clk 0:00:02.9]} 45... b2 {[%clk 0:01:25.5]} 46. Kc2
{[%clk 0:00:02.5]} 46... Ba2 {[%clk 0:01:25]} 0-1

[Event "Betsys MČR v online bleskovém šachu 2021"]
[Site "Chess.com"]
[Date "2021.04.17"]
[Round "1"]
[White "mysacek1414"]
[Black "EDA16"]
[Result "1-0"]
[WhiteElo "1902"]
[BlackElo "973"]
[TimeControl "180+1"]
[EndTime "9:07:19 PDT"]
[Termination "Uživatel mysacek1414 zvítězil matem"]

1. e4 {[%clk 0:02:59.4]} 1... c5 {[%clk 0:02:56]} 2. Nf3 {[%clk 0:02:59.6]} 2...
d6 {[%clk 0:02:54]} 3. d4 {[%clk 0:03:00.1]} 3... cxd4 {[%clk 0:02:52.5]} 4.
Nxd4 {[%clk 0:03:01]} 4... Nf6 {[%clk 0:02:50.5]} 5. Nc3 {[%clk 0:03:01.5]} 5...
g6 {[%clk 0:02:49.8]} 6. Be2 {[%clk 0:02:59.2]} 6... Bg7 {[%clk 0:02:49.2]} 7.
Be3 {[%clk 0:02:59.7]} 7... O-O {[%clk 0:02:47.8]} 8. O-O {[%clk 0:03:00.2]}
8... Qc7 {[%clk 0:02:45.1]} 9. f4 {[%clk 0:02:49.2]} 9... Nc6 {[%clk 0:02:35.3]}
10. Bf3 {[%clk 0:02:45.7]} 10... Nxd4 {[%clk 0:02:20]} 11. Bxd4 {[%clk
0:02:44.2]} 11... Be6 {[%clk 0:02:02.3]} 12. Re1 {[%clk 0:02:27.3]} 12... Rfd8
{[%clk 0:01:57.9]} 13. Qd2 {[%clk 0:02:25.7]} 13... d5 {[%clk 0:01:51.1]} 14. e5
{[%clk 0:02:09.8]} 14... Nd7 {[%clk 0:01:35.1]} 15. Bxd5 {[%clk 0:01:56.1]}
15... Bxd5 {[%clk 0:01:29.7]} 16. Nxd5 {[%clk 0:01:53.5]} 16... Qc4 {[%clk
0:01:15]} 17. Ne3 {[%clk 0:01:38.1]} 17... Qa6 {[%clk 0:01:12.8]} 18. c3 {[%clk
0:01:30.2]} 18... Rac8 {[%clk 0:01:11.5]} 19. Nd5 {[%clk 0:01:24.2]} 19... e6
{[%clk 0:01:09.2]} 20. Ne7+ {[%clk 0:01:22.3]} 20... Kh8 {[%clk 0:01:06.7]} 21.
Nxc8 {[%clk 0:01:23.2]} 21... Rxc8 {[%clk 0:01:05.9]} 22. Qe2 {[%clk 0:01:23.7]}
22... Qxe2 {[%clk 0:01:02.8]} 23. Rxe2 {[%clk 0:01:24.6]} 23... Nc5 {[%clk
0:00:55.5]} 24. Bxc5 {[%clk 0:01:22.9]} 24... Rxc5 {[%clk 0:00:53.4]} 25. Rd1
{[%clk 0:01:23.5]} 25... h6 {[%clk 0:00:49.1]} 26. Rd7 {[%clk 0:01:18.7]} 26...
Rb5 {[%clk 0:00:45.8]} 27. Rxf7 {[%clk 0:01:18.2]} 27... Kg8 {[%clk 0:00:44.9]}
28. Rd7 {[%clk 0:01:17]} 28... g5 {[%clk 0:00:33.7]} 29. g3 {[%clk 0:01:16.3]}
29... a5 {[%clk 0:00:27.1]} 30. Kf2 {[%clk 0:01:15.1]} 30... Rd5 {[%clk
0:00:24]} 31. Rxd5 {[%clk 0:01:13.1]} 31... exd5 {[%clk 0:00:23.6]} 32. Rd2
{[%clk 0:01:10.7]} 32... Kf7 {[%clk 0:00:23.3]} 33. Rxd5 {[%clk 0:01:09.6]}
33... Ke6 {[%clk 0:00:22.9]} 34. Rxa5 {[%clk 0:01:08.9]} 34... gxf4 {[%clk
0:00:21.6]} 35. gxf4 {[%clk 0:01:09.8]} 35... h5 {[%clk 0:00:20]} 36. Kf3 {[%clk
0:01:09.6]} 36... Bh6 {[%clk 0:00:19.2]} 37. Ke4 {[%clk 0:01:09.3]} 37... h4
{[%clk 0:00:17.8]} 38. f5+ {[%clk 0:01:09.3]} 38... Ke7 {[%clk 0:00:16.1]} 39.
Rb5 {[%clk 0:01:09]} 39... Bg7 {[%clk 0:00:04.6]} 40. Rxb7+ {[%clk 0:01:09.2]}
40... Kf8 {[%clk 0:00:03.4]} 41. f6 {[%clk 0:01:09.6]} 41... Bh6 {[%clk
0:00:02.4]} 42. e6 {[%clk 0:01:09.4]} 42... Bg5 {[%clk 0:00:01.6]} 43. Rb8#
{[%clk 0:01:09.4]} 1-0

[Event "Betsys MČR v online bleskovém šachu 2021"]
[Site "Chess.com"]
[Date "2021.04.17"]
[Round "1"]
[White "DrStillestein"]
[Black "TomSedmihradsky"]
[Result "1-0"]
[WhiteElo "2106"]
[BlackElo "1446"]
[TimeControl "180+1"]
[EndTime "9:07:20 PDT"]
[Termination "Uživatel DrStillestein zvítězil po vzdání soupeře"]

1. e4 {[%clk 0:03:00.2]} 1... e6 {[%clk 0:02:59.4]} 2. Nf3 {[%clk 0:02:59.3]}
2... d5 {[%clk 0:02:59]} 3. e5 {[%clk 0:02:58]} 3... c5 {[%clk 0:02:58.2]} 4. c3
{[%clk 0:02:57.1]} 4... Nc6 {[%clk 0:02:57.4]} 5. Bb5 {[%clk 0:02:56]} 5... Bd7
{[%clk 0:02:55.5]} 6. Bxc6 {[%clk 0:02:44.2]} 6... Bxc6 {[%clk 0:02:54.3]} 7. d4
{[%clk 0:02:45.1]} 7... c4 {[%clk 0:02:53.5]} 8. O-O {[%clk 0:02:43.2]} 8... Be7
{[%clk 0:02:41.1]} 9. a4 {[%clk 0:02:34.9]} 9... a5 {[%clk 0:02:37.7]} 10. Na3
{[%clk 0:02:34.5]} 10... Qd7 {[%clk 0:02:35.5]} 11. Nb1 {[%clk 0:02:23]} 11...
O-O-O {[%clk 0:02:23.5]} 12. b3 {[%clk 0:02:19.3]} 12... b6 {[%clk 0:02:03.2]}
13. bxc4 {[%clk 0:02:17.3]} 13... dxc4 {[%clk 0:02:02.2]} 14. Nbd2 {[%clk
0:02:16.2]} 14... Bd5 {[%clk 0:02:01.6]} 15. Ba3 {[%clk 0:02:13.3]} 15... Bxa3
{[%clk 0:01:58.3]} 16. Rxa3 {[%clk 0:02:14.2]} 16... Ne7 {[%clk 0:01:56.6]} 17.
Qb1 {[%clk 0:02:13.9]} 17... Kb7 {[%clk 0:01:53.1]} 18. Qb2 {[%clk 0:02:00.5]}
18... Rc8 {[%clk 0:01:40.8]} 19. Rb1 {[%clk 0:02:00.7]} 19... Rc6 {[%clk
0:01:39.6]} 20. Qb5 {[%clk 0:01:55.5]} 20... Rhc8 {[%clk 0:01:28.9]} 21. Qxa5
{[%clk 0:01:52.5]} 21... Ra8 {[%clk 0:01:23.1]} 22. Qb4 {[%clk 0:01:51.6]} 22...
Ra5 {[%clk 0:01:17.4]} 23. Qxa5 {[%clk 0:01:49.8]} 23... Nf5 {[%clk 0:01:02.9]}
24. Qb4 {[%clk 0:01:43]} 24... Ka6 {[%clk 0:00:50.1]} 25. Qb5+ {[%clk
0:01:41.4]} 25... Kb7 {[%clk 0:00:49.5]} 26. a5 {[%clk 0:01:41.1]} 26... Qd8
{[%clk 0:00:46.1]} 27. axb6 {[%clk 0:01:39.9]} 27... Rxb6 {[%clk 0:00:43.7]} 28.
Qxb6+ {[%clk 0:01:38.6]} 28... Qxb6 {[%clk 0:00:43]} 29. Rxb6+ {[%clk
0:01:39.5]} 29... Kxb6 {[%clk 0:00:42.7]} 30. g4 {[%clk 0:01:35.1]} 30... Ne7
{[%clk 0:00:36.7]} 31. Ng5 {[%clk 0:01:34.7]} 31... f6 {[%clk 0:00:30.9]} 32.
exf6 {[%clk 0:01:32.5]} 32... gxf6 {[%clk 0:00:30]} 33. Nxh7 {[%clk 0:01:31.9]}
33... f5 {[%clk 0:00:29.5]} 34. g5 {[%clk 0:01:31]} 34... Ng6 {[%clk 0:00:28.8]}
35. Nf6 {[%clk 0:01:26.5]} 35... Bb7 {[%clk 0:00:21.8]} 36. Nxc4+ {[%clk
0:01:25.2]} 36... Kb5 {[%clk 0:00:16.4]} 37. Nd6+ {[%clk 0:01:25.4]} 37... Kc6
{[%clk 0:00:15]} 38. Nxb7 {[%clk 0:01:24.2]} 38... Kxb7 {[%clk 0:00:14.7]} 39.
Nd7 {[%clk 0:01:21]} 39... Kc6 {[%clk 0:00:14.5]} 40. Nc5 {[%clk 0:01:21]} 40...
Kd5 {[%clk 0:00:14.1]} 41. Ra6 {[%clk 0:01:19.3]} 41... Nf4 {[%clk 0:00:13.6]}
42. Nxe6 {[%clk 0:01:18.4]} 42... Kc4 {[%clk 0:00:12.1]} 43. Nxf4 {[%clk
0:01:17.2]} 43... Kxc3 {[%clk 0:00:11.9]} 44. Rf6 {[%clk 0:01:16.8]} 44... Kxd4
{[%clk 0:00:11.2]} 45. Rxf5 {[%clk 0:01:17.7]} 45... Ke4 {[%clk 0:00:10.4]} 46.
Rf8 {[%clk 0:01:18.6]} 46... Ke5 {[%clk 0:00:09.2]} 47. g6 {[%clk 0:01:18.5]}
47... Kd6 {[%clk 0:00:09.1]} 48. g7 {[%clk 0:01:19.4]} 1-0

[Event "Betsys MČR v online bleskovém šachu 2021"]
[Site "Chess.com"]
[Date "2021.04.17"]
[Round "1"]
[White "florenc1330"]
[Black "bezzuton"]
[Result "1-0"]
[WhiteElo "2087"]
[BlackElo "1384"]
[TimeControl "180+1"]
[EndTime "9:07:22 PDT"]
[Termination "Uživatel florenc1330 zvítězil na čas"]

1. c4 {[%clk 0:03:00.8]} 1... c5 {[%clk 0:02:49.9]} 2. g3 {[%clk 0:03:00]} 2...
g6 {[%clk 0:02:48.5]} 3. Bg2 {[%clk 0:02:59.7]} 3... Bg7 {[%clk 0:02:47.3]} 4.
Nf3 {[%clk 0:02:59.3]} 4... Nc6 {[%clk 0:02:45.2]} 5. O-O {[%clk 0:02:59.1]}
5... d6 {[%clk 0:02:41.1]} 6. Nc3 {[%clk 0:02:58.8]} 6... Nf6 {[%clk 0:02:39.8]}
7. a3 {[%clk 0:02:58.6]} 7... O-O {[%clk 0:02:35.2]} 8. Rb1 {[%clk 0:02:58.3]}
8... Bf5 {[%clk 0:02:33.6]} 9. d3 {[%clk 0:02:57.1]} 9... a5 {[%clk 0:02:29.5]}
10. Ne1 {[%clk 0:02:55.7]} 10... Nd7 {[%clk 0:02:22.9]} 11. Nc2 {[%clk
0:02:50.8]} 11... Qb6 {[%clk 0:02:16.8]} 12. Nd5 {[%clk 0:02:44.6]} 12... Qd8
{[%clk 0:02:04.5]} 13. b4 {[%clk 0:02:41.9]} 13... axb4 {[%clk 0:01:57.1]} 14.
axb4 {[%clk 0:02:41.8]} 14... Nd4 {[%clk 0:01:46.5]} 15. e3 {[%clk 0:02:25.5]}
15... Nxc2 {[%clk 0:01:42.1]} 16. Qxc2 {[%clk 0:02:25.5]} 16... cxb4 {[%clk
0:01:34.4]} 17. Rxb4 {[%clk 0:02:19.8]} 17... Nc5 {[%clk 0:01:31.5]} 18. e4
{[%clk 0:02:10.9]} 18... Bd7 {[%clk 0:01:29.6]} 19. Bb2 {[%clk 0:02:08.5]} 19...
Bxb2 {[%clk 0:01:24.9]} 20. Rxb2 {[%clk 0:02:06.5]} 20... e5 {[%clk 0:01:19]}
21. Rfb1 {[%clk 0:02:04.4]} 21... Bc6 {[%clk 0:01:14.4]} 22. Qe2 {[%clk
0:01:54.2]} 22... Ra3 {[%clk 0:00:43]} 23. Nb4 {[%clk 0:01:46.3]} 23... f5
{[%clk 0:00:20.5]} 24. Nxc6 {[%clk 0:01:36.7]} 24... bxc6 {[%clk 0:00:20.4]} 25.
exf5 {[%clk 0:01:37]} 25... Rxf5 {[%clk 0:00:19]} 26. Bxc6 {[%clk 0:01:36.1]}
26... Qg5 {[%clk 0:00:17.6]} 27. Bd5+ {[%clk 0:01:34.9]} 27... Kg7 {[%clk
0:00:17.6]} 28. h4 {[%clk 0:01:29.8]} 28... Qf6 {[%clk 0:00:15.5]} 29. Rb8
{[%clk 0:01:26.9]} 29... Kh6 {[%clk 0:00:13.8]} 30. Qe3+ {[%clk 0:01:22.2]}
30... g5 {[%clk 0:00:11.5]} 31. Be4 {[%clk 0:01:16.6]} 31... Nxe4 {[%clk
0:00:07.7]} 32. Qxe4 {[%clk 0:01:10.8]} 32... Rxf2 {[%clk 0:00:04.4]} 33. R8b7
{[%clk 0:00:55.6]} 33... Qf5 {[%clk 0:00:03.5]} 34. hxg5+ {[%clk 0:00:53.6]} 1-0

[Event "Betsys MČR v online bleskovém šachu 2021"]
[Site "Chess.com"]
[Date "2021.04.17"]
[Round "1"]
[White "dino5517"]
[Black "kalcs"]
[Result "0-1"]
[WhiteElo "1392"]
[BlackElo "2089"]
[TimeControl "180+1"]
[EndTime "9:07:25 PDT"]
[Termination "Uživatel kalcs zvítězil po vzdání soupeře"]

1. e4 {[%clk 0:02:58.1]} 1... e5 {[%clk 0:02:58.9]} 2. Nf3 {[%clk 0:02:57]} 2...
Nc6 {[%clk 0:02:58.9]} 3. d4 {[%clk 0:02:55.3]} 3... exd4 {[%clk 0:02:58.3]} 4.
Nxd4 {[%clk 0:02:55.6]} 4... Bc5 {[%clk 0:02:57.6]} 5. Nb3 {[%clk 0:02:54.2]}
5... Bb6 {[%clk 0:02:56]} 6. Nc3 {[%clk 0:02:52.8]} 6... d6 {[%clk 0:02:55.3]}
7. Qf3 {[%clk 0:02:51.3]} 7... Nf6 {[%clk 0:02:54.3]} 8. Bg5 {[%clk 0:02:46.4]}
8... Ne5 {[%clk 0:02:53.4]} 9. Qg3 {[%clk 0:02:35.3]} 9... O-O {[%clk
0:02:29.2]} 10. O-O-O {[%clk 0:02:30]} 10... Neg4 {[%clk 0:02:19]} 11. Be3
{[%clk 0:02:02.7]} 11... Nxe3 {[%clk 0:02:08.9]} 12. fxe3 {[%clk 0:02:01.1]}
12... Qe7 {[%clk 0:01:51.2]} 13. Bd3 {[%clk 0:01:40.8]} 13... Bg4 {[%clk
0:01:42.2]} 14. Rdf1 {[%clk 0:01:32.6]} 14... Bh5 {[%clk 0:01:41.7]} 15. Nd4
{[%clk 0:01:27.7]} 15... Bg6 {[%clk 0:01:38.2]} 16. Qf3 {[%clk 0:01:03.1]} 16...
Rae8 {[%clk 0:01:23.2]} 17. Bc4 {[%clk 0:00:47.2]} 17... Nxe4 {[%clk 0:01:16.1]}
18. Nxe4 {[%clk 0:00:45.2]} 18... Bxe4 {[%clk 0:01:09.5]} 19. Qg3 {[%clk
0:00:39.5]} 19... d5 {[%clk 0:01:07.5]} 20. Bb3 {[%clk 0:00:38.1]} 20... c5
{[%clk 0:00:56.7]} 21. Ne2 {[%clk 0:00:26.9]} 21... Qe5 {[%clk 0:00:45]} 22.
Qxe5 {[%clk 0:00:23.9]} 22... Rxe5 {[%clk 0:00:44.2]} 23. Rf4 {[%clk 0:00:21.9]}
23... c4 {[%clk 0:00:43.2]} 24. Ba4 {[%clk 0:00:21]} 24... Bxe3+ {[%clk
0:00:43.1]} 25. Kb1 {[%clk 0:00:19.9]} 25... Bxf4 {[%clk 0:00:42.6]} 26. Nxf4
{[%clk 0:00:18.7]} 26... a6 {[%clk 0:00:42.5]} 27. b3 {[%clk 0:00:16.6]} 27...
b5 {[%clk 0:00:41.5]} 28. bxc4 {[%clk 0:00:15]} 28... dxc4 {[%clk 0:00:41.6]}
29. Bb3 {[%clk 0:00:13.6]} 29... cxb3 {[%clk 0:00:41.6]} 30. axb3 {[%clk
0:00:14.4]} 30... Rc8 {[%clk 0:00:39.9]} 31. Rc1 {[%clk 0:00:12.4]} 31... Rec5
{[%clk 0:00:37.5]} 32. Ne2 {[%clk 0:00:10]} 32... Rxc2 {[%clk 0:00:37.1]} 33.
Rxc2 {[%clk 0:00:09.8]} 33... Rxc2 {[%clk 0:00:36.9]} 34. Ka1 {[%clk 0:00:09]}
34... Rxe2 {[%clk 0:00:36.3]} 0-1

[Event "Betsys MČR v online bleskovém šachu 2021"]
[Site "Chess.com"]
[Date "2021.04.17"]
[Round "1"]
[White "CZMaster666"]
[Black "NikolaKusova"]
[Result "1-0"]
[WhiteElo "1868"]
[BlackElo "779"]
[TimeControl "180+1"]
[EndTime "9:07:28 PDT"]
[Termination "Uživatel CZMaster666 zvítězil matem"]

1. e4 {[%clk 0:02:58.9]} 1... e5 {[%clk 0:02:58.6]} 2. Nf3 {[%clk 0:02:58.9]}
2... Nc6 {[%clk 0:02:56.7]} 3. Bb5 {[%clk 0:02:58.9]} 3... Bc5 {[%clk
0:02:48.1]} 4. O-O {[%clk 0:02:57]} 4... Nf6 {[%clk 0:02:43.9]} 5. Re1 {[%clk
0:02:44.9]} 5... O-O {[%clk 0:02:41.6]} 6. c3 {[%clk 0:02:42.9]} 6... d6 {[%clk
0:02:29.1]} 7. d4 {[%clk 0:02:35]} 7... exd4 {[%clk 0:02:26.6]} 8. cxd4 {[%clk
0:02:35.9]} 8... Bb4 {[%clk 0:02:20.4]} 9. Nc3 {[%clk 0:01:57]} 9... Re8 {[%clk
0:02:11.5]} 10. Bg5 {[%clk 0:01:54.7]} 10... h6 {[%clk 0:02:03.9]} 11. Bxf6
{[%clk 0:01:39.7]} 11... Qxf6 {[%clk 0:02:01.9]} 12. Nd5 {[%clk 0:01:39.6]}
12... Qg6 {[%clk 0:01:56.3]} 13. Nxb4 {[%clk 0:01:30.9]} 13... Nxb4 {[%clk
0:01:50.5]} 14. Bxe8 {[%clk 0:01:29.5]} 14... Bg4 {[%clk 0:01:42.7]} 15. Ba4
{[%clk 0:01:15.6]} 15... c6 {[%clk 0:01:34.6]} 16. a3 {[%clk 0:01:04.3]} 16...
Na6 {[%clk 0:01:29.9]} 17. Kh1 {[%clk 0:01:01.8]} 17... Re8 {[%clk 0:01:23.6]}
18. e5 {[%clk 0:00:58.1]} 18... dxe5 {[%clk 0:01:19.6]} 19. dxe5 {[%clk
0:00:45.1]} 19... Nc5 {[%clk 0:01:01.9]} 20. Bc2 {[%clk 0:00:44.8]} 20... Nd7
{[%clk 0:00:54.2]} 21. Qd6 {[%clk 0:00:38.2]} 21... Qxd6 {[%clk 0:00:46.1]} 22.
exd6 {[%clk 0:00:35.7]} 22... Rd8 {[%clk 0:00:39.4]} 23. Ne5 {[%clk 0:00:29.9]}
23... Nxe5 {[%clk 0:00:35.6]} 24. Rxe5 {[%clk 0:00:30.8]} 24... f6 {[%clk
0:00:26.6]} 25. Re7 {[%clk 0:00:29.8]} 25... Rd7 {[%clk 0:00:24.2]} 26. Rxd7
{[%clk 0:00:24.1]} 26... Bxd7 {[%clk 0:00:23.4]} 27. Re1 {[%clk 0:00:25]} 27...
Kh8 {[%clk 0:00:21.5]} 28. Re7 {[%clk 0:00:25.5]} 28... Kg8 {[%clk 0:00:14.5]}
29. Rxd7 {[%clk 0:00:24.9]} 29... Kf8 {[%clk 0:00:13.4]} 30. Re7 {[%clk
0:00:24.5]} 30... Kg8 {[%clk 0:00:11.7]} 31. Bg6 {[%clk 0:00:25]} 31... Kf8
{[%clk 0:00:10.9]} 32. Re8# {[%clk 0:00:25.9]} 1-0

[Event "Betsys MČR v online bleskovém šachu 2021"]
[Site "Chess.com"]
[Date "2021.04.17"]
[Round "1"]
[White "tucnak64"]
[Black "Nevimjakhrat"]
[Result "1/2-1/2"]
[WhiteElo "2104"]
[BlackElo "1499"]
[TimeControl "180+1"]
[EndTime "9:07:29 PDT"]
[Termination "Remíza opakováním pozice"]

1. d4 {[%clk 0:02:59.7]} 1... Nf6 {[%clk 0:02:53.8]} 2. Nf3 {[%clk 0:02:59.1]}
2... e6 {[%clk 0:02:52.9]} 3. Bg5 {[%clk 0:02:58.8]} 3... Bb4+ {[%clk
0:02:47.3]} 4. c3 {[%clk 0:02:57.5]} 4... Be7 {[%clk 0:02:45.7]} 5. Nbd2 {[%clk
0:02:57]} 5... d5 {[%clk 0:02:44.2]} 6. Ne5 {[%clk 0:02:56.6]} 6... Nbd7 {[%clk
0:02:40.8]} 7. Ndf3 {[%clk 0:02:55.8]} 7... Nxe5 {[%clk 0:02:38.5]} 8. Nxe5
{[%clk 0:02:54.8]} 8... Nd7 {[%clk 0:02:39.2]} 9. Bxe7 {[%clk 0:02:53.7]} 9...
Qxe7 {[%clk 0:02:38.8]} 10. f4 {[%clk 0:02:50.9]} 10... Nxe5 {[%clk 0:02:24.4]}
11. fxe5 {[%clk 0:02:44.6]} 11... c5 {[%clk 0:02:24.3]} 12. e3 {[%clk
0:02:43.9]} 12... Bd7 {[%clk 0:02:07.5]} 13. Bd3 {[%clk 0:02:42]} 13... Qg5
{[%clk 0:02:05.2]} 14. Qf3 {[%clk 0:02:37]} 14... c4 {[%clk 0:01:59.2]} 15. Bc2
{[%clk 0:02:33.7]} 15... O-O {[%clk 0:01:57.1]} 16. O-O {[%clk 0:02:28.5]} 16...
f6 {[%clk 0:01:49.6]} 17. Qh3 {[%clk 0:02:22.3]} 17... h6 {[%clk 0:01:39]} 18.
exf6 {[%clk 0:02:19.9]} 18... Rxf6 {[%clk 0:01:33.9]} 19. Rxf6 {[%clk
0:02:19.4]} 19... Qxf6 {[%clk 0:01:33]} 20. Rf1 {[%clk 0:02:18.3]} 20... Qg5
{[%clk 0:01:33.2]} 21. Rf4 {[%clk 0:02:13.3]} 21... e5 {[%clk 0:01:26.6]} 22.
Qxd7 {[%clk 0:02:00.6]} 22... exf4 {[%clk 0:01:22.4]} 23. exf4 {[%clk
0:01:58.6]} 23... Qxf4 {[%clk 0:01:17.2]} 24. Qxd5+ {[%clk 0:01:58]} 24... Kh8
{[%clk 0:01:15.5]} 25. Be4 {[%clk 0:01:48.9]} 25... Rf8 {[%clk 0:01:07.7]} 26.
Bf3 {[%clk 0:01:45.8]} 26... Qc1+ {[%clk 0:01:06.7]} 27. Kf2 {[%clk 0:01:45.1]}
27... Qxb2+ {[%clk 0:01:06.8]} 28. Kg3 {[%clk 0:01:44.9]} 28... Qxc3 {[%clk
0:01:00.4]} 29. Qe5 {[%clk 0:01:41.2]} 29... Qc1 {[%clk 0:00:49.9]} 30. h4
{[%clk 0:01:36.8]} 30... c3 {[%clk 0:00:45.6]} 31. d5 {[%clk 0:01:36.3]} 31...
c2 {[%clk 0:00:40]} 32. d6 {[%clk 0:01:31.9]} 32... Qb1 {[%clk 0:00:25.4]} 33.
Qe7 {[%clk 0:01:20.2]} 33... Rg8 {[%clk 0:00:15.3]} 34. d7 {[%clk 0:01:18.3]}
34... c1=Q {[%clk 0:00:12.3]} 35. d8=Q {[%clk 0:01:14.9]} 35... Qe1+ {[%clk
0:00:10.6]} 36. Kh3 {[%clk 0:01:10]} 36... Qxe7 {[%clk 0:00:10.3]} 37. Qxe7
{[%clk 0:01:08.1]} 37... Qf5+ {[%clk 0:00:11.2]} 38. Kg3 {[%clk 0:01:06.7]}
38... Qg6+ {[%clk 0:00:09.6]} 39. Kh2 {[%clk 0:01:03.6]} 39... Qf6 {[%clk
0:00:04.9]} 40. Qxb7 {[%clk 0:01:01.2]} 40... Qxh4+ {[%clk 0:00:04.3]} 41. Kg1
{[%clk 0:01:01.2]} 41... Qe1+ {[%clk 0:00:04.6]} 42. Kh2 {[%clk 0:01:00.5]}
42... Qh4+ {[%clk 0:00:04.9]} 43. Kg1 {[%clk 0:01:00.7]} 43... Qe1+ {[%clk
0:00:05.1]} 44. Kh2 {[%clk 0:01:01]} 44... Qh4+ {[%clk 0:00:06]} 1/2-1/2